bitfinex-derivatives/quotes_SOLF0:USTF0_20260114
["timestamp","ask_amount","ask_price","bid_price","bid_amount"]
[1768392039080,3.14085058,143.73,143.66,9.38567506]
[1768392040081,0.04761732,143.71,143.66,9.38567506]
[1768392041077,0.04761732,143.71,143.67,6.2673]
[1768392043880,81.7,143.74,143.68,9.33727305]
[1768392044180,81.7,143.74,143.68,3.07047305]
[1768392044578,3.14085058,143.77,143.68,3.07047305]
[1768392044782,3.14085058,143.77,143.7,6.266]
[1768392045487,3.14085058,143.77,143.72,0.04628244]
[1768392046175,3.14085058,143.76,143.68,9.33717305]
[1768392046580,3.14085058,143.76,143.69,6.2665]
[1768392047583,3.14085058,143.76,143.69,9.33697305]
[1768392047980,3.14085058,143.76,143.7,6.2661]
[1768392048381,87.59047668,143.78,143.69,3.07047305]
[1768392048579,81.74,143.78,143.7,3.07047305]
[1768392049380,3.14085058,143.77,143.7,3.07047305]
[1768392050889,3.14085058,143.77,143.71,6.2654]
[1768392052296,3.14085058,143.77,143.71,9.33587305]
[1768392052590,81.74,143.78,143.72,3.07047305]
[1768392054085,84.88085058,143.78,143.71,6.2654]
[1768392054487,84.88085058,143.78,143.7,3.07047305]
[1768392054488,3.14085058,143.77,143.7,3.07047305]
[1768392054682,3.14085058,143.76,143.7,3.07047305]
[1768392055086,3.14085058,143.76,143.7,9.33657305]
[1768392056390,84.88085058,143.78,143.71,9.33607305]
[1768392058707,3.14085058,143.77,143.69,9.33667305]
[1768392060296,3.14085058,143.76,143.69,3.07047305]
[1768392060600,3.14085058,143.76,143.66,3.07047305]
[1768392060797,6.2641,143.75,143.68,6.2669]
[1768392060999,3.14085058,143.74,143.68,6.2669]
[1768392061503,3.14085058,143.76,143.69,3.07047305]
[1768392062704,3.14085058,143.76,143.71,6.2656]
[1768392063707,81.74,143.78,143.72,6.2652]
[1768392064199,84.88085058,143.78,143.72,6.2652]
[1768392064795,84.88085058,143.78,143.73,6.2647]
[1768392065003,3.14085058,143.81,143.72,3.07047305]
[1768392065403,3.14085058,143.81,143.75,6.2638]
[1768392067804,0.04996327,143.79,143.77,0.04436216]
[1768392068002,3.03226905,143.79,143.74,6.2642]
[1768392068203,3.03226905,143.79,143.71,2.97931346]
[1768392068403,3.03226905,143.79,143.73,6.2648]
[1768392069002,3.03226905,143.79,143.74,6.2643]
[1768392069507,0.04996327,143.79,143.74,6.2643]
[1768392072703,0.04996327,143.79,143.72,9.24421346]
[1768392072902,2.98230578,143.78,143.72,6.2649]
[1768392073811,9.24500578,143.78,143.72,6.2649]
[1768392074310,2.98230578,143.78,143.72,6.2649]
[1768392074510,0.04996327,143.79,143.73,6.2647]
[1768392074702,3.03226905,143.79,143.73,6.2647]
[1768392075406,2.98230578,143.78,143.71,6.2654]
[1768392075609,2.98230578,143.78,143.69,2.97931346]
[1768392076309,0.04523491,143.75,143.69,2.97931346]
[1768392076521,2.98230578,143.78,143.7,2.97931346]
[1768392076815,2.98230578,143.78,143.72,6.2652]
[1768392078612,2.98230578,143.78,143.72,9.24451346]
[1768392079412,2.98230578,143.78,143.72,6.2652]
[1768392079608,2.98230578,143.78,143.7,3.22702705]
[1768392079914,2.7096261,143.79,143.67,3.22702705]
[1768392079915,3.0798648,143.76,143.67,3.22702705]
[1768392080116,84.8198648,143.75,143.67,3.22702705]
[1768392080312,3.0798648,143.74,143.67,3.22702705]
[1768392081017,3.0798648,143.74,143.68,6.2669]
[1768392081407,0.04698104,143.72,143.68,6.2669]
[1768392083113,0.04698104,143.72,143.67,3.22702705]
[1768392085918,0.04698104,143.72,143.67,9.49432705]
[1768392087410,0.04698104,143.72,143.67,6.2673]
[1768392088913,3.12684584,143.72,143.67,6.2673]
[1768392090014,3.12684584,143.72,143.65,9.49502705]
[1768392090214,1.73675618,143.71,143.65,9.49502705]
[1768392090821,3.12684584,143.72,143.66,6.2678]
[1768392091518,3.12684584,143.72,143.66,9.49482705]
[1768392091814,0.04698104,143.72,143.67,9.49432705]
[1768392092120,0.04698104,143.72,143.64,1.73675618]
[1768392092121,81.74,143.75,143.68,4.96378323]
[1768392092320,81.74,143.75,143.68,3.22702705]
[1768392092820,81.74,143.75,143.69,6.2665]
[1768392093218,81.74,143.75,143.68,3.22702705]
[1768392093422,81.74,143.75,143.68,9.49402705]
[1768392093619,84.8198648,143.75,143.68,9.49402705]
[1768392095223,84.8198648,143.75,143.69,9.26502396]
[1768392095429,81.74,143.75,143.7,2.99862396]
[1768392095816,81.74,143.75,143.69,6.2662]
[1768392096125,81.74,143.75,143.69,9.26482396]
[1768392096723,4.95290309,143.74,143.66,2.99862396]
[1768392096914,3.21614691,143.73,143.66,2.99862396]
[1768392097316,1.73675618,143.7,143.63,2.99862396]
[1768392097620,4.95290309,143.7,143.63,2.99862396]
[1768392098220,3.21614691,143.7,143.63,2.99862396]
[1768392098820,3.21614691,143.7,143.64,9.26732396]
[1768392099027,1.73675618,143.69,143.62,2.99862396]
[1768392099918,1.73675618,143.69,143.62,9.26792396]
[1768392100318,1.73675618,143.69,143.62,2.99862396]
[1768392100523,81.76,143.7,143.63,4.73538014]
[1768392101827,84.97614691,143.7,143.64,6.2686]
[1768392104827,84.97614691,143.7,143.63,2.99862396]
[1768392105228,3.21614691,143.69,143.63,2.99862396]
[1768392106823,3.21614691,143.69,143.63,9.26772396]
[1768392109131,3.21614691,143.69,143.6,97.5416]
[1768392109132,3.21614691,143.69,143.6,2.99862396]
[1768392109321,3.21614691,143.69,143.61,2.99862396]
[1768392110223,1.73675618,143.65,143.57,2.99862396]
[1768392110426,1.73675618,143.65,143.58,2.99862396]
[1768392110427,3.21614691,143.65,143.58,2.99862396]
[1768392110623,3.21614691,143.67,143.6,2.99862396]
[1768392110826,1.73675618,143.66,143.6,2.99862396]
[1768392111021,4.95290309,143.66,143.6,2.99862396]
[1768392111417,3.21614691,143.65,143.57,2.99862396]
[1768392111623,3.21614691,143.64,143.57,2.99862396]
[1768392112024,3.21614691,143.64,143.56,1.73675618]
[1768392112025,3.21614691,143.64,143.58,4.73538014]
[1768392112832,3.21614691,143.64,143.59,6.2708]
[1768392113326,4.95290309,143.64,143.56,2.99862396]
[1768392113531,4.95290309,143.64,143.56,4.73538014]
[1768392113532,3.21614691,143.63,143.56,4.73538014]
[1768392113927,3.21614691,143.64,143.57,9.27032396]
[1768392114135,3.21614691,143.64,143.57,11.00708014]
[1768392115731,3.21614691,143.64,143.57,9.27032396]
[1768392116129,3.21614691,143.64,143.57,11.00708014]
[1768392116435,3.21614691,143.61,143.51,100.60002396]
[1768392116630,3.21614691,143.59,143.48,2.99862396]
[1768392116828,3.21614691,143.59,143.5,2.99862396]
[1768392117135,3.21614691,143.59,143.52,4.73538014]
[1768392117332,3.21614691,143.59,143.52,2.99862396]
[1768392117529,3.21614691,143.59,143.53,1.78199564]
[1768392117731,81.8,143.6,143.53,11.0540196]
[1768392118034,81.8,143.6,143.54,1.73675618]
[1768392118338,0.05075991,143.58,143.55,1.73675618]
[1768392118535,81.8,143.6,143.55,1.73675618]
[1768392118937,3.21614691,143.62,143.55,1.73675618]
[1768392119433,3.21614691,143.61,143.5,2.99862396]
[1768392119635,3.21614691,143.61,143.52,4.73538014]
[1768392119832,3.21614691,143.61,143.57,0.04691496]
[1768392120028,3.21614691,143.61,143.52,4.73538014]
[1768392120331,3.21614691,143.53,143.47,5.99005777]
[1768392120536,1.91646842,143.47,143.36,2.99862396]
[1768392120729,81.82,143.46,143.39,1.73675618]
[1768392120939,81.82,143.48,143.41,1.73675618]
[1768392121140,81.82,143.48,143.39,2.99862396]
[1768392121340,83.73646842,143.48,143.39,2.99862396]
[1768392121543,1.91646842,143.46,143.37,1.73675618]
[1768392121842,1.91646842,143.46,143.38,2.99862396]
[1768392122041,1.91646842,143.46,143.39,1.73675618]
[1768392122341,81.82,143.46,143.38,2.99862396]
[1768392122533,81.82,143.46,143.39,1.73675618]
[1768392123136,81.82,143.46,143.38,2.99862396]
[1768392123335,81.82,143.46,143.39,1.73675618]
[1768392123943,81.82,143.46,143.38,2.99862396]
[1768392124238,81.82,143.46,143.39,1.73675618]
[1768392124441,81.82,143.46,143.41,1.73675618]
[1768392124639,1.91646842,143.55,143.45,4.73538014]
[1768392124844,1.91646842,143.55,143.48,1.73675618]
[1768392125339,83.77646842,143.58,143.5,1.73675618]
[1768392125741,81.86,143.58,143.5,4.9919327]
[1768392125944,0.05134971,143.55,143.53,0.04890315]
[1768392126146,81.86,143.58,143.53,0.04890315]
[1768392127440,6.2707,143.6,143.53,0.04890315]
[1768392128544,81.86,143.61,143.53,0.04890315]
[1768392128749,1.91982045,143.64,143.53,3.30407967]
[1768392128939,83.77982045,143.64,143.53,3.30407967]
[1768392129249,1.91982045,143.63,143.53,3.25517652]
[1768392129644,1.91982045,143.63,143.57,0.05155858]
[1768392129944,1.91982045,143.62,143.49,3.25517652]
[1768392130147,1.91982045,143.61,143.51,9.52937652]
[1768392130850,1.91982045,143.61,143.52,9.52897652]
[1768392133343,8.18872045,143.64,143.53,3.25517652]
[1768392133650,81.86,143.63,143.53,3.25517652]
[1768392134247,83.77982045,143.63,143.53,3.25517652]
[1768392135050,90.04912045,143.63,143.53,3.25517652]
[1768392135349,90.04912045,143.63,143.54,9.52817652]
[1768392135552,90.04912045,143.63,143.57,0.04413504]
[1768392137059,1.91982045,143.63,143.57,0.04413504]
[1768392138954,0.0510882,143.61,143.57,0.04413504]
[1768392139751,0.0510882,143.61,143.57,3.08568949]
[1768392139950,1.91729706,143.66,143.57,3.08568949]
[1768392140457,1.91729706,143.66,143.57,3.04155445]
[1768392140958,8.18529706,143.66,143.58,3.04155445]
[1768392141359,8.18529706,143.66,143.6,0.04815624]
[1768392141962,1.91729706,143.66,143.6,0.04815624]
[1768392143362,8.18529706,143.66,143.6,0.04815624]
[1768392144156,1.91729706,143.66,143.6,0.04815624]
[1768392145557,81.86,143.68,143.6,3.08971069]
[1768392145763,88.1272,143.68,143.6,3.08971069]
[1768392146451,90.09558526,143.68,143.6,3.08971069]
[1768392146653,83.82838526,143.68,143.6,9.36001069]
[1768392146847,83.82838526,143.68,143.6,3.08971069]
[1768392147052,81.86,143.68,143.6,3.08971069]
[1768392147259,1.96838526,143.74,143.63,3.04155445]
[1768392147560,81.84,143.73,143.64,3.04155445]
[1768392147959,81.84,143.73,143.66,9.30925445]
[1768392148160,81.84,143.73,143.66,3.04155445]
[1768392148353,81.84,143.73,143.63,100.23072715]
[1768392148354,81.84,143.73,143.67,9.3541343]
[1768392148662,8.23198526,143.76,143.67,9.3541343]
[1768392148855,1.96838526,143.76,143.67,3.0868343]
[1768392149054,1.96838526,143.76,143.67,3.04155445]
[1768392149256,1.96838526,143.76,143.69,6.2664]
[1768392149455,1.96838526,143.76,143.7,0.05204495]
[1768392152355,1.96838526,143.79,143.72,3.04155445]
[1768392152550,81.82,143.81,143.72,3.04155445]
[1768392152757,83.78838526,143.81,143.72,3.04155445]
[1768392152950,0.04820799,143.77,143.72,9.30675445]
[1768392153154,0.04820799,143.77,143.72,3.04155445]
[1768392153462,0.04820799,143.77,143.75,0.04399447]
[1768392154262,83.78838526,143.81,143.75,0.04399447]
[1768392154662,81.82,143.81,143.75,3.08554892]
[1768392154860,1.96838526,143.84,143.75,3.08554892]
[1768392155460,1.96838526,143.84,143.75,3.04155445]
[1768392155661,1.96838526,143.84,143.78,0.05063561]
[1768392160766,1.96838526,143.84,143.74,3.19681043]
[1768392160972,1.91329829,143.82,143.71,3.19681043]
[1768392161468,1.91329829,143.8,143.71,3.19681043]
[1768392161972,1.91329829,143.79,143.68,3.19681043]
[1768392162166,1.91329829,143.78,143.74,0.04432564]
[1768392162964,81.78,143.8,143.74,0.04432564]
[1768392163170,83.69329829,143.8,143.74,0.04432564]
[1768392163967,1.91329829,143.79,143.7,3.19681043]
[1768392164787,1.91329829,143.78,143.67,3.19681043]
[1768392165275,1.91329829,143.76,143.67,3.19681043]
[1768392165468,1.91329829,143.74,143.67,3.19681043]
[1768392166078,1.91329829,143.74,143.67,9.46401043]
[1768392166469,1.91329829,143.74,143.69,0.04794706]
[1768392166768,81.76,143.75,143.69,0.04794706]
[1768392167470,1.91329829,143.77,143.69,3.24475749]
[1768392167867,1.91329829,143.77,143.69,9.51115749]
[1768392168076,1.91329829,143.77,143.69,3.24475749]
[1768392168374,81.76,143.78,143.69,3.24475749]
[1768392168768,81.76,143.78,143.69,3.19681043]
[1768392169277,81.76,143.78,143.72,0.04723802]
[1768392169475,83.67329829,143.78,143.72,0.04723802]
[1768392170177,1.91329829,143.77,143.72,0.04723802]
[1768392170483,1.91329829,143.77,143.66,3.19681043]
[1768392170673,1.9115563,143.76,143.66,3.19681043]
[1768392170973,1.86606027,143.76,143.66,3.19681043]
[1768392171177,1.86606027,143.76,143.68,6.2669]
[1768392171775,0.04448835,143.73,143.68,9.46371043]
[1768392172181,0.04448835,143.73,143.66,9.46451043]
[1768392172472,0.04448835,143.73,143.66,3.19681043]
[1768392172778,1.86606027,143.74,143.66,3.19681043]
[1768392172979,1.86606027,143.77,143.67,3.19681043]
[1768392173380,1.86606027,143.77,143.69,0.04448637]
[1768392173779,1.86606027,143.77,143.69,6.31068637]
[1768392174375,1.86606027,143.77,143.69,9.5074968]
[1768392177281,1.86606027,143.77,143.7,3.19681043]
[1768392177477,1.86606027,143.77,143.7,9.46291043]
[1768392178883,1.86606027,143.77,143.72,0.0440568]
[1768392181578,8.12926027,143.77,143.72,0.0440568]
[1768392182378,1.86606027,143.76,143.72,0.0440568]
[1768392182777,1.86606027,143.75,143.67,3.19681043]
[1768392182975,1.9164373,143.75,143.67,3.19681043]
[1768392183776,1.86606027,143.74,143.68,6.2666]
[1768392185585,1.86606027,143.74,143.67,3.19681043]
[1768392186184,1.86606027,143.74,143.67,9.46421043]
[1768392186384,0.0532685,143.72,143.67,9.46421043]
[1768392187774,0.0532685,143.72,143.67,3.19681043]
[1768392189087,0.0532685,143.72,143.67,9.46411043]
[1768392190083,0.0532685,143.72,143.68,6.267]
[1768392191887,4.58502719,143.77,143.7,3.25558245]
[1768392192498,1.92512652,143.76,143.7,9.52168245]
[1768392193397,1.92512652,143.76,143.72,0.04568713]
[1768392193892,6.2631,143.77,143.72,0.04568713]
[1768392194190,5.40991163,143.76,143.72,0.04568713]
[1768392194490,83.68512652,143.78,143.72,0.04568713]
[1768392194694,5.41020781,143.77,143.72,0.04568713]
[1768392194996,1.92512652,143.78,143.72,0.04568713]
[1768392195889,1.92512652,143.78,143.72,6.31088713]
[1768392198390,1.92512652,143.78,143.73,6.2647]
[1768392198696,89.96702652,143.8,143.73,6.2647]
[1768392198891,83.70512652,143.8,143.74,6.2641]
[1768392199495,83.70512652,143.8,143.76,0.05282266]
[1768392200594,83.70512652,143.8,143.74,6.2641]
[1768392200799,0.04866791,143.79,143.74,6.2641]
[1768392202292,2.71316917,143.82,143.75,6.2639]
[1768392202598,4.63337614,143.82,143.75,6.30883812]
[1768392203304,10.89427614,143.82,143.75,6.30883812]
[1768392203495,1.92020697,143.81,143.75,6.30883812]
[1768392204199,1.92020697,143.81,143.75,0.04493812]
[1768392205196,1.92020697,143.78,143.7,3.23774154]
[1768392205396,3.61130644,143.77,143.7,3.23774154]
[1768392205795,1.87526885,143.77,143.7,3.23774154]
[1768392206000,1.73603759,143.76,143.7,3.23774154]
[1768392206394,1.73603759,143.76,143.7,9.50384154]
[1768392206998,1.73603759,143.76,143.72,0.04886844]
[1768392207198,3.61130644,143.76,143.72,0.04886844]
[1768392207399,3.61130644,143.76,143.68,3.23774154]
[1768392208202,1.87526885,143.76,143.68,3.23774154]
[1768392208701,0.04867101,143.73,143.68,4.97377913]
[1768392208895,0.04867101,143.73,143.69,6.2664]
[1768392209100,1.87526885,143.76,143.69,9.50414154]
[1768392209405,1.87526885,143.76,143.7,0.04788432]
[1768392210401,7.99933759,143.77,143.7,3.28562586]
[1768392211003,85.39130644,143.78,143.7,3.28562586]
[1768392211208,83.65526885,143.78,143.7,3.28562586]
[1768392211396,83.65526885,143.78,143.7,5.02166345]
[1768392211598,81.78,143.78,143.72,3.23774154]
[1768392212197,81.78,143.78,143.72,9.50284154]
[1768392212403,81.78,143.78,143.74,0.05168409]
[1768392214399,83.65526885,143.78,143.7,11.23957913]
[1768392214602,0.04522902,143.77,143.7,11.23957913]
[1768392215102,0.04522902,143.77,143.7,4.97377913]
[1768392215408,0.04522902,143.77,143.72,6.2651]
[1768392215906,0.04522902,143.77,143.73,3.11550089]
[1768392216710,9.87421453,143.8,143.73,9.38030089]
[1768392216904,1.87637694,143.8,143.74,1.78452107]
[1768392217101,85.39241453,143.82,143.74,4.90002196]
[1768392217501,1.87637694,143.81,143.74,3.11550089]
[1768392218110,1.87637694,143.81,143.76,0.04863005]
[1768392220004,0.04439365,143.8,143.76,0.04863005]
[1768392220205,0.04439365,143.8,143.76,6.31193005]
[1768392220815,0.04439365,143.8,143.76,0.04863005]
[1768392226419,1.78043124,143.8,143.76,0.04863005]
[1768392226715,0.04439365,143.8,143.76,0.04863005]
[1768392227221,1.78043124,143.8,143.76,0.04863005]
[1768392228411,0.04439365,143.8,143.76,0.04863005]
[1768392229719,0.04439365,143.8,143.76,6.31183005]
[1768392230120,1.92077059,143.8,143.76,0.04863005]
[1768392230618,0.04439365,143.8,143.76,0.04863005]
[1768392232724,3.65680818,143.8,143.73,6.2645]
[1768392233024,1.92077059,143.8,143.73,3.11550089]
[1768392233215,1.92077059,143.8,143.74,6.264]
[1768392234123,1.92077059,143.8,143.74,9.37950089]
[1768392242517,0.04439365,143.8,143.75,3.11550089]
[1768392245327,0.04439365,143.8,143.75,9.37940089]
[1768392246424,0.04439365,143.8,143.76,6.2635]
[1768392247719,0.04439365,143.8,143.77,6.263]
[1768392247923,0.04439365,143.8,143.77,9.54819207]
[1768392248127,81.78,143.82,143.77,3.28519207]
[1768392248329,3.61297668,143.84,143.77,3.28519207]
[1768392249822,3.61297668,143.84,143.78,6.2626]
[1768392250530,3.61297668,143.84,143.8,0.04628502]
[1768392250732,1.87693909,143.84,143.8,0.04628502]
[1768392251033,3.61297668,143.84,143.8,0.04628502]
[1768392251429,81.76,143.86,143.8,3.33147709]
[1768392251638,1.87693909,143.85,143.8,0.04628502]
[1768392252523,1.87693909,143.85,143.8,6.30778502]
[1768392254030,1.87693909,143.85,143.8,0.04628502]
[1768392256234,3.61297668,143.85,143.8,0.04628502]
[1768392256437,1.87693909,143.85,143.8,0.04628502]
[1768392256625,3.61297668,143.85,143.8,0.04628502]
[1768392257333,1.73603759,143.85,143.8,3.33147709]
[1768392258834,7.99483759,143.87,143.8,3.33147709]
[1768392259030,1.73603759,143.87,143.81,3.28519207]
[1768392259828,1.73603759,143.87,143.81,9.54649207]
[1768392261839,3.61025011,143.87,143.81,9.54649207]
[1768392262640,1.73603759,143.87,143.82,9.51671214]
[1768392262937,1.73603759,143.87,143.82,3.25591214]
[1768392263436,8.13251252,143.88,143.82,3.25591214]
[1768392263636,1.73603759,143.87,143.82,3.25591214]
[1768392263838,8.13251252,143.88,143.82,3.25591214]
[1768392264137,1.73603759,143.87,143.82,3.25591214]
[1768392264538,1.73603759,143.87,143.84,0.04569521]
[1768392265139,7.99493759,143.87,143.84,0.04569521]
[1768392265341,6.2589,143.87,143.84,0.04569521]
[1768392268141,8.13251252,143.88,143.84,0.04569521]
[1768392268336,6.2583,143.88,143.84,0.04569521]
[1768392270243,81.76,143.89,143.84,0.04569521]
[1768392270436,81.76,143.89,143.84,3.30160735]
[1768392271735,88.0179,143.89,143.84,3.30160735]
[1768392271937,1.87421252,143.88,143.8,3.25591214]
[1768392272243,1.87421252,143.86,143.77,3.25591214]
[1768392272939,1.87421252,143.86,143.79,3.25591214]
[1768392273343,0.04785369,143.83,143.79,3.25591214]
[1768392273540,1.87421252,143.86,143.79,3.25591214]
[1768392273735,8.13351252,143.86,143.81,0.04412245]
[1768392274135,6.2593,143.86,143.81,0.04412245]
[1768392274342,6.2593,143.86,143.81,3.30003459]
[1768392275344,1.87421252,143.88,143.81,3.30003459]
[1768392276547,6.2592,143.86,143.81,3.30003459]
[1768392277348,6.2587,143.87,143.81,3.30003459]
[1768392279848,8.13251252,143.88,143.81,3.30003459]
[1768392280458,8.13251252,143.88,143.81,9.56123459]
[1768392281753,8.13251252,143.88,143.82,3.17472583]
[1768392281952,1.87421252,143.88,143.82,3.17472583]
[1768392282153,88.0179,143.89,143.83,3.17472583]
[1768392282343,81.76,143.89,143.83,3.17472583]
[1768392282742,81.76,143.89,143.84,9.43462583]
[1768392282946,83.63815837,143.89,143.85,0.04634226]
[1768392284852,89.89605837,143.89,143.85,0.04634226]
[1768392286359,81.76,143.89,143.85,0.04634226]
[1768392286553,8.13555837,143.91,143.85,3.22106809]
[1768392286958,81.74,143.92,143.85,3.22106809]
[1768392287262,83.61815837,143.92,143.86,3.17472583]
[1768392288853,83.61815837,143.92,143.86,9.43382583]
[1768392289053,1.87815837,143.96,143.87,3.17472583]
[1768392289259,1.87815837,143.95,143.87,3.17472583]
[1768392289654,1.87815837,143.95,143.84,2.70866339]
[1768392289655,1.87815837,143.92,143.82,3.17472583]
[1768392290063,1.87815837,143.92,143.83,3.17472583]
[1768392290564,1.87815837,143.92,143.85,3.17472583]
[1768392290860,83.61815837,143.92,143.85,3.17472583]
[1768392291864,83.61815837,143.92,143.85,9.43432583]
[1768392293869,83.61815837,143.92,143.86,6.2591]
[1768392294663,83.61815837,143.92,143.88,0.04468658]
[1768392298360,81.74,143.92,143.88,0.04468658]
[1768392298561,81.74,143.92,143.88,9.47761241]
[1768392298864,1.87815837,143.94,143.88,9.47761241]
[1768392299268,81.72,143.95,143.89,9.43252583]
[1768392300971,81.72,143.95,143.9,6.2574]
[1768392301470,1.87815837,143.97,143.91,6.2568]
[1768392301776,1.87815837,143.97,143.89,3.17472583]
[1768392302762,1.87815837,143.97,143.9,6.2574]
[1768392302966,1.87815837,143.97,143.92,0.04767405]
[1768392303371,83.59815837,143.98,143.92,0.04767405]
[1768392304067,1.87815837,143.97,143.92,0.04767405]
[1768392305572,1.87322945,144.01,143.94,2.98528204]
[1768392306468,1.87322945,144.01,143.96,0.05104557]
[1768392306867,1.87322945,144.0,143.91,9.24198204]
[1768392307074,1.87322945,144.0,143.92,2.98528204]
[1768392307263,1.92370746,144.0,143.92,2.98528204]
[1768392307662,1.92370746,144.0,143.9,2.98528204]
[1768392307870,1.82218388,143.98,143.9,2.98528204]
[1768392308476,0.04554438,143.95,143.9,2.98528204]
[1768392308879,0.04554438,143.95,143.9,9.24258204]
[1768392310577,1.82218388,143.98,143.91,3.03589215]
[1768392312477,0.04445286,143.96,143.91,3.03589215]
[1768392312982,0.04445286,143.96,143.91,0.05061011]
[1768392312983,1.86663674,143.96,143.91,0.05061011]
[1768392314981,0.04445286,143.96,143.91,3.03589215]
[1768392319192,0.04445286,143.96,143.91,9.29279215]
[1768392319684,0.04445286,143.96,143.92,3.22951272]
[1768392320481,0.04445286,143.96,143.93,6.256]
[1768392320690,83.52204112,144.0,143.93,3.22951272]
[1768392321185,84.40866339,144.0,143.93,3.22951272]
[1768392321390,1.82204112,143.99,143.91,3.22951272]
[1768392321591,1.82204112,143.99,143.92,6.2562]
[1768392321784,1.82204112,143.99,143.92,9.48571272]
[1768392321979,1.82204112,143.99,143.94,0.05187565]
[1768392323287,1.82204112,144.01,143.94,3.28138837]
[1768392324884,84.40866339,144.03,143.96,3.22951272]
[1768392325096,81.7,144.03,143.96,3.22951272]
[1768392325291,83.52204112,144.03,143.96,3.22951272]
[1768392325779,83.52204112,144.03,143.98,0.05211977]
[1768392325977,1.82204112,144.02,143.98,0.05211977]
[1768392326184,1.82204112,144.01,143.94,9.48481272]
[1768392326588,1.82204112,144.01,143.95,6.2551]
[1768392326998,1.82204112,144.01,143.94,3.22951272]
[1768392327197,1.82204112,144.01,143.96,6.2547]
[1768392327693,3.55195035,144.01,143.96,6.2547]
[1768392327996,1.72990923,144.01,143.96,6.2547]
[1768392328892,1.72990923,144.02,143.96,6.2547]
[1768392329093,3.55195035,144.02,143.96,6.2547]
[1768392329496,1.72990923,144.02,143.97,9.48381272]
[1768392330300,83.42990923,144.03,143.98,6.2539]
[1768392331200,81.7,144.03,143.98,6.2539]
[1768392331498,85.25195035,144.03,143.96,6.2544]
[1768392331803,1.72990923,144.02,143.96,6.2544]
[1768392331997,3.55195035,144.02,143.96,6.2544]
[1768392333298,1.72990923,144.01,143.96,6.2544]
[1768392334207,1.82204112,143.99,143.92,3.22951272]
[1768392334393,1.72990923,144.0,143.93,1.72990923]
[1768392334598,1.72990923,144.0,143.94,3.22951272]
[1768392335594,1.72990923,144.02,143.94,3.22951272]
[1768392335793,6.2523,144.02,143.95,9.45013676]
[1768392336001,7.98220923,144.02,143.95,3.19493676]
[1768392336701,6.2523,144.02,143.95,3.19493676]
[1768392336902,7.98220923,144.02,143.95,3.19493676]
[1768392337706,1.72990923,144.02,143.95,9.45013676]
[1768392338101,1.72990923,144.02,143.96,3.19493676]
[1768392338301,89.77299785,144.03,143.97,9.44933676]
[1768392338302,1.82119785,144.03,143.97,9.44933676]
[1768392338701,1.82119785,144.03,143.97,3.19493676]
[1768392339200,8.07299785,144.03,143.97,3.19493676]
[1768392339599,9.80290708,144.03,143.97,3.19493676]
[1768392341015,3.55110708,144.03,143.97,3.19493676]
[1768392341605,1.82119785,144.03,143.97,3.19493676]
[1768392341811,3.55110708,144.03,143.97,3.19493676]
[1768392342910,3.55110708,144.01,143.94,6.2553]
[1768392343217,3.55110708,144.01,143.93,3.19493676]
[1768392344815,9.80380708,144.01,143.93,9.45093676]
[1768392345013,1.82119785,144.01,143.93,3.19493676]
[1768392345217,3.55110708,144.01,143.93,3.19493676]
[1768392346707,1.82119785,144.01,143.93,3.19493676]
[1768392347010,3.55110708,144.01,143.94,6.2556]
[1768392350011,9.80380708,144.01,143.94,6.2556]
[1768392350213,9.80380708,144.01,143.94,9.45053676]
[1768392352121,8.07389785,144.01,143.94,9.45053676]
[1768392352322,9.80380708,144.01,143.94,9.45053676]
[1768392352822,6.2536,143.99,143.92,9.45143676]
[1768392353017,6.2536,143.99,143.92,3.19493676]
[1768392353018,1.72990923,143.97,143.92,3.19493676]
[1768392354621,8.07519785,143.98,143.92,3.19493676]
[1768392354920,9.80510708,143.98,143.92,3.19493676]
[1768392356414,1.72990923,143.97,143.92,3.19493676]
[1768392359820,0.04921935,143.96,143.93,0.05077896]
[1768392360729,1.72990923,143.99,143.93,3.24571572]
[1768392361331,8.07419785,144.01,143.93,3.24571572]
[1768392361332,8.07419785,144.01,143.94,3.19493676]
[1768392361631,9.80410708,144.01,143.94,3.19493676]
[1768392362123,9.80410708,144.01,143.96,0.05342121]
[1768392362723,8.07419785,144.01,143.96,0.05342121]
[1768392362925,1.72990923,144.0,143.96,0.05342121]
[1768392364531,1.76777664,143.99,143.92,3.19493676]
[1768392364830,3.49768587,143.99,143.92,3.19493676]
[1768392365226,3.01912808,144.04,143.97,3.27966924]
[1768392365626,1.72990923,144.03,143.97,3.27966924]
[1768392365828,4.90702326,144.03,143.97,3.27966924]
[1768392366424,3.17711403,144.03,143.97,3.27966924]
[1768392366831,4.90702326,144.06,143.98,3.27966924]
[1768392367728,1.72990923,144.05,143.98,3.27966924]
[1768392367934,9.42791403,144.06,143.98,9.53356924]
[1768392368130,3.17711403,144.06,143.98,3.27966924]
[1768392368447,3.17711403,144.06,143.99,1.72990923]